lending/lending_fUSD_20240130
["ID","MTS","AMOUNT","RATE_DAILY","PERIOD"]
[313021846,1706635833434,-152.68666967,0.00022999,2]
[313021847,1706635833443,-1000.0,0.00022999,2]
[313021848,1706635833452,-500.0,0.00022999,2]
[313021849,1706635833461,-261.21874599,0.00022999,2]
[313021850,1706635833470,-645.17318497,0.00022999,2]
[313021851,1706635833479,-240.35302396,0.00022999,2]
[313021852,1706635833488,-151995.72310027,0.00023,2]
[313021853,1706635833497,-188566.86972247,0.00023,2]
[313021854,1706635833511,-2805.78287957,0.00023,2]
[313021855,1706635833543,-1191.63461506,0.00023,2]
[313021856,1706635833554,-481.13236969,0.00023,2]
[313021857,1706635833565,-590.0394705,0.00023,2]
[313021858,1706635833576,-3698.8629852,0.00023,2]
[313021859,1706635833599,-3908.02865213,0.00023,2]
[313021860,1706635833610,-278.60878409,0.00023,2]
[313021861,1706635833621,-11080.29459186,0.00023,2]
[313021862,1706635833632,-64662.1701103,0.00023,2]
[313021863,1706635833655,-1498.83714,0.00023,2]
[313021864,1706635833666,-1003.29,0.00023,2]
[313021865,1706635833678,-41222.10508229,0.00023,2]
[313021866,1706635833689,-407.53,0.00023,2]
[313021867,1706635833700,-2116.65688665,0.00023,2]
[313021868,1706635833711,-250.0,0.00023,2]
[313021869,1706635833730,-1050.64516846,0.00023,2]
[313021870,1706635833743,-359.66464337,0.00023,2]
[313021871,1706635833754,-2431.44335424,0.00023,2]
[313021872,1706635833765,-818.99,0.00023,2]
[313021873,1706635833776,-254.21000005,0.00023,2]
[313021874,1706635833787,-311.08000015,0.00023,2]
[313021875,1706635833798,-409.47900183,0.00023,2]
[313021876,1706635833810,-272.72700117,0.00023,2]
[313021885,1706635837685,-1711.60859331,0.00023,2]
[313021886,1706635837697,-4543.91839151,0.00023,2]
[313021887,1706635837745,-3698.23679594,0.00023,2]
[313021888,1706635837759,-479.04350136,0.00023,2]
[313021889,1706635837926,-662.07691135,0.00022999,2]
[313021890,1706635837940,-1008.56509104,0.00023,2]
[313021891,1706635838002,-1038.57916476,0.00023,2]
[313022012,1706635840270,-1156.2,0.00023,2]
[313022013,1706635841050,-1065.50424833,0.00023,2]
[313022014,1706635841062,-2384.53733941,0.00023,2]
[313022038,1706635843439,-534867.89196327,0.00023,2]
[313022039,1706635843451,-846.24244422,0.00023,2]
[313022040,1706635843462,-674.39633457,0.00023,2]
[313022041,1706635843485,-1899.61861468,0.00023,2]
[313022054,1706635845639,-186.3766416,0.00022999,2]
[313022055,1706635845649,-152.80633574,0.00023,2]
[313022056,1706635845698,-142097.19586735,0.00023,2]
[313022057,1706635845757,-256.27053509,0.00023,2]
[313022071,1706635916098,172.48,0.00022357,2]
[313022072,1706635931717,6681.87,0.00022426,2]
[313022073,1706635945262,155.27,0.00022356,2]
[313022074,1706635953587,250.0,0.00022356,2]
[313022075,1706635985064,2500.0,0.00022227,3]
[313022076,1706635993754,167.29,0.00022227,2]
[313022077,1706636061560,158.19916146,0.00022406,2]
[313022078,1706636075223,398.67,0.00020311,2]
[313022079,1706636090161,420.36,0.00022187,2]
[313022080,1706636103307,212.47646995,0.00022501,2]
[313022081,1706636106552,385.34629856,0.00022501,2]
[313022082,1706636114604,157.9,0.00022396,2]
[313022083,1706636196289,353.08,0.00022,2]
[313022084,1706636246490,1263.68858696,0.00022481,2]
[313022085,1706636254743,1117.55,0.00022209,2]
[313022086,1706636286673,173.46,0.00022196,2]
[313022087,1706636335446,2000.0,0.00022196,2]
[313022088,1706636359033,952.79526646,0.00022196,5]
[313022089,1706636396764,229.46,0.00022193,2]
[313022090,1706636517007,378.73,0.0002027,2]
[313022091,1706636521743,172.48,0.00022148,2]
[313022092,1706636560723,663.71,0.00022188,2]
[313022093,1706636613644,206.0,0.00022019,2]
[313022094,1706636684078,931.29,0.000224,2]
[313022095,1706636732361,170.88,0.00022119,2]
[313022096,1706636822528,206.28,0.00022119,2]
[313022103,1706636966301,359.79,0.00020358,2]
[313022104,1706636995559,154.56,0.000222,2]
[313022105,1706637007516,469.03,0.00021974,2]
[313022119,1706637031863,-240.36283375,0.00022526,2]
[313022120,1706637031872,-203.56448077,0.00022526,2]
[313022121,1706637031882,-512.98056158,0.00022527,2]
[313022122,1706637031971,-186.68728354,0.00022527,2]
[313022123,1706637031982,-943.45629656,0.00022527,2]
[313022124,1706637031991,-210.48403034,0.00022528,2]
[313022125,1706637032000,-4283.36490793,0.00022529,2]
[313022126,1706637032009,-731.98,0.00022607,2]
[313022127,1706637032018,-359.79,0.00022621,2]
[313022128,1706637032027,-713.61,0.00022634,2]
[313022129,1706637032036,-158.19916146,0.00022715,2]
[313022130,1706637032045,-200.0,0.00022815,2]
[313022131,1706637032053,-150.0,0.00022815,2]
[313022132,1706637032062,-300.0,0.00022815,2]
[313022133,1706637032071,-500.0,0.00022816,2]
[313022134,1706637032079,-200.0,0.00022816,2]
[313022135,1706637032088,-800.0,0.00022816,2]
[313022136,1706637032097,-200.0,0.00022816,2]
[313022137,1706637032106,-1000.0,0.00022894,2]
[313022138,1706637032115,-248.27478963,0.00022894,2]
[313022139,1706637032124,-2143.27217967,0.00022894,2]
[313022140,1706637032132,-202.34228253,0.00022895,2]
[313022141,1706637032141,-1263.7331295,0.00022895,2]
[313022142,1706637032150,-2555.95627264,0.00022895,2]
[313022143,1706637032159,-2856.68241284,0.00022895,2]
[313022144,1706637032167,-178.41668698,0.00022895,2]
[313022145,1706637032177,-90517.1691915,0.00022895,2]
[313022153,1706637032278,-11399.97788743,0.00022895,2]
[313022160,1706637032346,-14572.3726419,0.00022895,2]
[313022161,1706637032358,-3677.26281111,0.00022895,2]
[313022165,1706637032475,-56354.98010072,0.00022895,2]
[313022166,1706637032488,-5214.03621605,0.00022895,2]
[313022168,1706637037855,-729.11955328,0.00022895,2]
[313022169,1706637037916,-18808.86054008,0.00022895,2]
[313022170,1706637037928,-45344.70341462,0.00022895,2]
[313022171,1706637037979,-767.00604565,0.00022895,2]
[313022172,1706637037992,-1085.34348513,0.00022895,2]
[313022173,1706637038219,-406.46916604,0.00022895,2]
[313022174,1706637038232,-326.45,0.00022895,2]
[313022175,1706637038259,-1631.5164132,0.00022895,2]
[313022176,1706637038271,-636.9005323,0.00022895,2]
[313022179,1706637038287,-838.226,0.00022895,2]
[313022181,1706637038299,-481.70408771,0.00022895,2]
[313022184,1706637038318,-2158.24505822,0.00022895,2]
[313022186,1706637038329,-3055.35419844,0.00022895,2]
[313022189,1706637038341,-1703.428056,0.00022895,2]
[313022193,1706637038357,-266.29936235,0.00022895,2]
[313022359,1706637040424,-38885.42475643,0.00022895,2]
[313022360,1706637041092,-13130.26104,0.00022895,2]
[313022361,1706637042315,-516.8993834,0.00022895,2]
[313022362,1706637042371,-101247.15196014,0.00022895,2]
[313022363,1706637042381,-4647.6718,0.00022896,2]
[313022364,1706637042390,-3103.20371825,0.00022896,2]
[313022365,1706637042400,-52823.82698019,0.00022896,2]
[313022366,1706637042410,-408.13209907,0.00022896,2]
[313022367,1706637042419,-1217.97078183,0.00022896,2]
[313022368,1706637042428,-1046.15159532,0.00022896,2]
[313022369,1706637042438,-1259.29922996,0.00022896,2]
[313022370,1706637042449,-7803.03250074,0.00022897,2]
[313022371,1706637042460,-1000.0,0.00022897,2]
[313022372,1706637042470,-3036.18274364,0.00022898,5]
[313022373,1706637042479,-22565.79359916,0.00022899,2]
[313022375,1706637042488,-157.25879481,0.000229,2]
[313022376,1706637042499,-161.17868995,0.000229,2]
[313022377,1706637042508,-153.60379297,0.000229,2]
[313022378,1706637042517,-979.78769156,0.000229,2]
[313022379,1706637042526,-264.00838232,0.000229,2]
[313022380,1706637042535,-3155.98201457,0.000229,2]
[313022381,1706637042544,-183.18964413,0.000229,2]
[313022382,1706637042553,-578.19241259,0.000229,2]
[313022383,1706637042561,-566.39425906,0.000229,2]
[313022384,1706637042570,-5543.72897598,0.000229,2]
[313022385,1706637042579,-708.93897026,0.000229,2]
[313022386,1706637042588,-5000.0,0.00022903,2]
[313022387,1706637042598,-176.57512782,0.00022996,2]
[313022390,1706637042607,-325.12,0.00022996,2]
[313022392,1706637042616,-499.99,0.00022996,2]
[313022394,1706637042625,-624.78,0.00022996,2]
[313022395,1706637042634,-458.08995678,0.00022997,2]
[313022396,1706637042643,-500.0,0.00022997,2]
[313022397,1706637042653,-308.40575502,0.00022998,2]
[313022398,1706637042662,-155.37563385,0.00022998,2]
[313022400,1706637042671,-155.40023858,0.00022998,2]
[313022401,1706637042681,-302.15259034,0.00022998,2]
[313022402,1706637042690,-506.52431985,0.00022998,2]
[313022403,1706637042699,-247.85885747,0.00022998,2]
[313022404,1706637042708,-544.2770359,0.00022998,2]
[313022405,1706637042718,-218.22518431,0.00022998,2]
[313022407,1706637042727,-2642.68092034,0.00022998,2]
[313022409,1706637042737,-305.77445266,0.00022998,2]
[313022410,1706637042746,-250.61147486,0.00022998,2]
[313022411,1706637042755,-191.11582529,0.00022998,2]
[313022412,1706637042764,-275.03879438,0.00022998,2]
[313022413,1706637042774,-245.21688013,0.00022999,2]
[313022414,1706637042783,-219.09250265,0.00022999,2]
[313022415,1706637042792,-1317.04712678,0.00022999,2]
[313022417,1706637042802,-242.5572894,0.00022999,2]
[313022419,1706637042811,-1071.96370442,0.00022999,2]
[313022421,1706637042820,-936.05863322,0.00022999,2]
[313022422,1706637042829,-984.24808758,0.00022999,2]
[313022425,1706637042838,-767.58742384,0.00022999,2]
[313022427,1706637042847,-345.60573259,0.00022999,2]
[313022428,1706637042857,-3148.06260981,0.00022999,2]
[313022429,1706637042866,-314.71198551,0.00022999,10]
[313022430,1706637042875,-331.03845568,0.00022999,2]
[313022431,1706637042884,-629.7423798,0.00022999,2]
[313022432,1706637042893,-45418.8934629,0.00022999,2]
[313022433,1706637042903,-429815.89125783,0.00023,2]
[313022434,1706637043000,-2725.42000001,0.00023,2]
[313022435,1706637043036,-464.9119998,0.00023,2]
[313022436,1706637043174,-290401.85777287,0.00023,2]
[313022445,1706637058040,536.12178792,0.00022078,2]
[313022446,1706637063195,345.0,0.00022078,2]
[313022465,1706637228360,6653.0,0.0002,2]
[313022472,1706637245906,2000.0,0.00022272,2]
[313022481,1706637259985,156.33985434,0.0002,2]
[313022482,1706637261678,155.0,0.0002,2]
[313022485,1706637271215,534.6057752,0.0002,2]
[313022487,1706637274446,534.31353818,0.0002,2]
[313022489,1706637277153,169.95856105,0.0002,2]
[313022500,1706637309930,404.97,0.0002242,2]
[313022503,1706637321217,200.0,0.00022176,2]
[313022505,1706637324149,4648.03,0.00022176,2]
[313022509,1706637347958,200.0,0.00022107,2]
[313022510,1706637351589,250.0,0.00022107,2]
[313022514,1706637408805,1852.42,0.00022079,2]
[313022515,1706637412210,250.0,0.00022079,2]
[313022516,1706637445005,2705.0,0.00022025,2]
[313022517,1706637447527,1620.23796861,0.00021996,2]
[313022519,1706637454312,500.0,0.00022025,2]
[313022522,1706637527605,386.65,0.00020094,2]
[313022523,1706637527865,386.65,0.00022358,2]
[313022524,1706637531272,400.0,0.00020264,2]
[313022525,1706637556542,339.82234476,0.00022025,2]
[313022526,1706637565302,1175.1489536,0.00022025,2]
[313022527,1706637565329,345.0,0.00022077,2]
[313022528,1706637576882,157.79,0.00022183,2]
[313022530,1706637591880,275.06,0.00022018,2]
[313022532,1706637618540,194.49119342,0.00022025,2]
[313022534,1706637625758,23900.0,0.00022004,2]
[313022535,1706637629840,1000.0,0.00022004,2]
[313022537,1706637638025,205.50880658,0.00022025,2]
[313022538,1706637639604,803.0635,0.00022428,2]
[313022539,1706637640155,500.0,0.00022025,2]
[313022540,1706637654187,500.0,0.00022025,2]
[313022541,1706637657328,500.0,0.00022077,2]
[313022542,1706637661954,979.76203139,0.00021915,2]
[313022543,1706637667897,1122.09241769,0.00022025,2]
[313022546,1706637685889,640.65517288,0.00022025,2]
[313022547,1706637693839,206.0,0.00021732,2]
[313022548,1706637714248,182.21,0.00022016,2]
[313022554,1706637745703,855.93,0.00021973,2]
[313022557,1706637785201,820.48,0.00021992,2]
[313022558,1706637836013,200.0,0.00021908,2]
[313022559,1706637859351,1228.73,0.00022068,2]
[313022560,1706637879846,200.0,0.00021866,2]
[313022561,1706637886459,497.55,0.00021882,2]
[313022562,1706637892742,161.72367135,0.00022408,2]
[313022563,1706637915115,174.81713115,0.00022501,2]
[313022564,1706637916557,943.45629656,0.00022501,2]
[313022565,1706637921450,210.48403034,0.000225,2]
[313022566,1706637922898,750.0,0.00021882,2]
[313022567,1706637929494,2320.0,0.00021857,2]
[313022568,1706637938662,387.97709514,0.00022501,2]
[313022569,1706637941567,533.56145808,0.00022501,2]
[313022570,1706637942411,526.41523693,0.00022501,2]
[313022571,1706637948513,355.38062368,0.00022501,2]
[313022572,1706637952204,240.36283375,0.00022501,2]
[313022573,1706637964390,4283.36490793,0.00022501,2]
[313022574,1706637978198,500.0,0.00021912,2]
[313022576,1706637985960,210.48403034,0.00022501,2]
[313022577,1706637989145,174.81713115,0.00022501,2]
[313022578,1706637997986,1108.0,0.00022501,2]
[313022579,1706638006034,544.58,0.00021912,2]
[313022580,1706638010684,526.41523693,0.00022501,2]
[313022581,1706638012657,156.65,0.00022076,2]
[313022582,1706638012900,156.65,0.00022459,2]
[313022583,1706638020495,385.56410415,0.00022501,2]
[313022584,1706638024100,489.42425043,0.00022501,2]
[313022586,1706638063018,371.1,0.00019986,2]
[313022587,1706638063240,371.1,0.0002225,2]
[313022588,1706638076764,23900.0,0.00021899,2]
[313022589,1706638089403,200.0,0.00021911,2]
[313022590,1706638108625,500.0,0.00022408,2]
[313022591,1706638150415,2000.0,0.00021922,2]
[313022592,1706638211723,867.32,0.00021915,2]
[313022593,1706638213914,189.53,0.00021915,2]
[313022617,1706638232060,-240.36283375,0.00022506,2]
[313022618,1706638232071,-525.34573836,0.00022507,2]
[313022619,1706638232082,-162.8282996,0.00022515,2]
[313022620,1706638232276,-1037.1717004,0.00022515,2]
[313022621,1706638232286,-735.74,0.00022614,2]
[313022622,1706638232295,-727.86,0.0002265,2]
[313022623,1706638232305,-728.84,0.0002265,2]
[313022624,1706638232314,-300.0,0.00022678,2]
[313022625,1706638232324,-719.7,0.00022695,2]
[313022626,1706638232334,-150.0,0.00022729,2]
[313022627,1706638232344,-300.0,0.00022729,2]
[313022629,1706638232353,-3839.25629242,0.0002273,2]
[313022631,1706638232362,-230.13025193,0.0002273,2]
[313022633,1706638232371,-264.5166843,0.0002273,2]
[313022635,1706638232380,-488.35353847,0.0002273,2]
[313022637,1706638232390,-385.21166197,0.0002273,2]
[313022639,1706638232400,-399.74424619,0.0002273,2]
[313022642,1706638232410,-220.00444881,0.0002273,2]
[313022645,1706638232420,-406.63400339,0.00022731,2]
[313022646,1706638232429,-533.14935492,0.00022731,2]
[313022647,1706638232439,-1974.01767623,0.00022731,2]
[313022649,1706638232453,-910.3533981,0.00022731,2]
[313022652,1706638232478,-467.17892567,0.00022731,2]
[313022654,1706638232488,-730.05,0.00022732,2]
[313022656,1706638232500,-1118.04,0.00022732,2]
[313022658,1706638232509,-419.57703986,0.00022732,2]
[313022662,1706638232522,-499.95,0.00022732,2]
[313022665,1706638232534,-653.000008,0.00022732,2]
[313022668,1706638232547,-886.0,0.00022732,2]
[313022671,1706638232560,-352.47295214,0.00022732,2]
[313022673,1706638232574,-5221.64,0.00022732,2]
[313022675,1706638232584,-2037.39,0.00022732,2]
[313022677,1706638232594,-4914.2,0.00022732,2]
[313022679,1706638232605,-526.22979665,0.00022768,2]
[313022681,1706638232615,-583.2561244,0.00022768,2]
[313022683,1706638232625,-460.79391895,0.00022768,2]
[313022685,1706638232636,-387.5983711,0.00022768,2]
[313022687,1706638232648,-494.84174762,0.00022768,2]
[313022688,1706638232658,-506.6971,0.00022798,2]
[313022690,1706638232667,-479.8011,0.00022798,2]
[313022692,1706638232678,-500.0,0.00022815,2]
[313022694,1706638232689,-500.0,0.00022816,2]
[313022696,1706638232698,-200.0,0.00022816,2]
[313022698,1706638232710,-225.73824664,0.00022816,2]
[313022700,1706638232723,-574.26175336,0.00022816,2]
[313022701,1706638232734,-200.0,0.00022816,2]
[313022702,1706638232743,-156.65,0.00022843,2]
[313022703,1706638232754,-2500.0,0.00022894,2]
[313022704,1706638232764,-834.55754338,0.000229,2]
[313022705,1706638232776,-161.72367135,0.000229,2]
[313022706,1706638232786,-5000.0,0.000229,2]
[313022707,1706638232796,-183.18964412,0.000229,2]
[313022708,1706638232807,-578.19241258,0.000229,2]
[313022709,1706638232818,-1018.93326494,0.000229,2]
[313022710,1706638232829,-472.62598016,0.000229,2]
[313022711,1706638232840,-172.73481198,0.000229,2]
[313022712,1706638232850,-176.00558822,0.000229,2]
[313022713,1706638232860,-377.5961727,0.000229,2]
[313022714,1706638232870,-500.0,0.00022972,2]
[313022715,1706638232880,-310.77911582,0.00022992,2]
[313022716,1706638232890,-338.32247396,0.00022994,2]
[313022717,1706638232901,-3034.16475632,0.00022994,2]
[313022718,1706638232954,-1031.76632145,0.00022994,2]
[313022719,1706638232966,-641.78023561,0.00022994,2]
[313022720,1706638232979,-4044.32963381,0.00022994,2]
[313022724,1706638238937,-653.19179436,0.000229,2]
[313022725,1706638238946,-5000.0,0.000229,2]
[313022726,1706638238955,-408.13209907,0.00022993,2]
[313022727,1706638238965,-15642.93871682,0.00022994,2]
[313022728,1706638238974,-155.0,0.00022994,2]
[313022729,1706638238985,-155.0,0.00022995,2]
[313022730,1706638238994,-371.95881086,0.00022995,2]
[313022731,1706638239004,-7693.0873696,0.00022996,2]
[313022732,1706638239013,-75189.4308909,0.00022996,2]
[313022733,1706638239022,-4351.0819733,0.00022996,2]
[313022734,1706638239032,-474.20164571,0.00022997,2]
[313022735,1706638239041,-400.0,0.00022997,2]
[313022736,1706638239052,-199.65296929,0.00022997,2]
[313022737,1706638239062,-266.01806587,0.00022997,2]
[313022738,1706638239072,-10546.99948315,0.00022997,2]
[313022739,1706638239082,-401.38245199,0.00022997,2]
[313022740,1706638239092,-220.91396861,0.00022997,2]
[313022741,1706638239101,-502.41371894,0.00022997,2]
[313022742,1706638239110,-314.91414561,0.00022997,2]
[313022743,1706638239119,-292.70291374,0.00022997,2]
[313022744,1706638239129,-696.52150303,0.00022998,2]
[313022745,1706638239138,-1255.14945143,0.00022998,2]
[313022746,1706638239148,-923.39,0.00022998,2]
[313022747,1706638239158,-165.51922784,0.00022999,2]
[313022748,1706638239167,-203.48687298,0.00022999,2]
[313022749,1706638239177,-7195.74020548,0.00022999,2]
[313022750,1706638239186,-1243.13174653,0.00022999,2]
[313022751,1706638239199,-2410.01001848,0.00022999,2]
[313022755,1706638239275,-12912.90918983,0.00022999,2]
[313022849,1706638241429,-39788.92914589,0.00022999,2]
[313022850,1706638241439,-392.6640714,0.00022999,10]
[313022851,1706638241449,-392.6640714,0.00022999,10]
[313022852,1706638241459,-755317.26007446,0.00023,2]
[313022853,1706638241469,-211.89158902,0.00023,2]
[313022854,1706638241479,-995622.95332967,0.00023,2]
[313022867,1706638243096,-153.60379297,0.000229,2]
[313022868,1706638243106,-246.39620703,0.00023,2]
[313022869,1706638243118,-184400.32642441,0.00023,2]
[313022870,1706638243127,-10090.76727381,0.00023,2]
[313022871,1706638243206,-197956.34413359,0.00023,2]
[313022872,1706638243216,-2000.0,0.00023,2]
[313022873,1706638243226,-200.0,0.00023,2]
[313022874,1706638243235,-1500.0,0.00023,2]
[313022875,1706638243244,-324.53,0.00023,2]
[313022876,1706638243254,-14842.0,0.00023014,2]
[313022877,1706638243264,-1127.04508563,0.00023022,2]
[313022878,1706638243276,-500.0,0.00023127,2]
[313022879,1706638243286,-1263.68858696,0.00023206,2]
[313022880,1706638243296,-156.65,0.00023226,2]
[313022881,1706638243306,-174.4,0.00023252,2]
[313022882,1706638243317,-500.0,0.00023283,2]
[313022883,1706638243327,-500.0,0.00023438,2]
[313022884,1706638243337,-206.0,0.00023465,2]
[313022885,1706638243347,-867.32,0.00023559,2]
[313022886,1706638243356,-500.0,0.00023594,2]
[313022887,1706638243366,-500.0,0.00023749,2]
[313022888,1706638243375,-500.0,0.00023905,2]
[313022889,1706638243386,-201.63954653,0.00024,2]
[313022890,1706638243397,-2832.0,0.00024,2]
[313022891,1706638243407,-19425.0,0.00024,2]
[313022892,1706638243417,-500.0,0.0002406,2]
[313022893,1706638243428,-383.26,0.00024077,2]
[313022894,1706638243438,-189.53,0.00024107,2]
[313022895,1706638243448,-500.0,0.00024216,2]
[313022896,1706638243457,-182.21,0.00024218,2]
[313022897,1706638243467,-169.34,0.00024297,2]
[313022898,1706638243476,-167.0,0.00024297,2]
[313022899,1706638243486,-167.0,0.00024297,2]
[313022900,1706638243496,-175.61,0.00024297,2]
[313022901,1706638243505,-167.0,0.00024297,2]
[313022902,1706638243515,-500.0,0.00024372,2]
[313022903,1706638243525,-8583.87,0.00024384,2]
[313022904,1706638243537,-3847.31,0.00024384,2]
[313022905,1706638243549,-838.0,0.00024392,2]
[313022906,1706638243559,-3090.987,0.00024392,2]
[313022907,1706638243569,-1860.0,0.00024392,2]
[313022908,1706638243581,-587.921,0.00024392,2]
[313022909,1706638243591,-1233.0,0.00024392,2]
[313022910,1706638243602,-596.0,0.00024433,2]
[313022911,1706638243613,-1940.0,0.00024433,2]
[313022912,1706638243623,-1000.0,0.00024433,2]
[313022913,1706638243633,-427.0,0.00024433,2]
[313022914,1706638243644,-241.673,0.00024433,2]
[313022915,1706638243654,-322.365,0.00024433,2]
[313022916,1706638243665,-151.32,0.00024433,2]
[313022917,1706638243674,-860.0,0.00024433,2]
[313022918,1706638243685,-210.0,0.00024433,2]
[313022919,1706638243695,-7379.0,0.0002444,2]
[313022920,1706638243705,-2280.0,0.0002444,2]
[313022921,1706638243716,-19763.0,0.0002444,2]
[313022922,1706638243725,-8125.0,0.0002444,2]
[313022923,1706638243736,-5598.0,0.0002444,2]
[313022924,1706638243745,-2914.0,0.0002444,2]
[313022925,1706638243755,-4189.0,0.0002444,2]
[313022926,1706638243765,-1033.0,0.0002444,2]
[313022927,1706638243775,-3155.98201451,0.00024445,2]
[313022928,1706638243785,-168.563,0.0002449,2]
[313022929,1706638243795,-151.014,0.0002449,2]
[313022930,1706638243805,-150.0,0.0002449,2]
[313022931,1706638243816,-150.0,0.0002449,2]
[313022932,1706638243826,-200.0,0.0002449,2]
[313022933,1706638243836,-150.0,0.0002449,2]
[313022934,1706638243846,-2470.973,0.0002449,2]
[313022935,1706638243856,-1362.0,0.0002449,2]
[313022936,1706638243866,-387.0,0.0002449,2]
[313022937,1706638243876,-949.0,0.0002449,2]
[313022938,1706638243886,-371.1,0.00024514,2]
[313022939,1706638243897,-500.0,0.00024527,2]
[313022940,1706638243907,-174.4,0.00024622,2]
[313022941,1706638243918,-200.0,0.0002465,2]
[313022942,1706638243929,-250.0,0.00024658,2]
[313022943,1706638243939,-246.0,0.0002468,2]
[313022944,1706638243949,-500.0,0.00024683,2]
[313022945,1706638243959,-1000.0,0.00024755,2]
[313022946,1706638243971,-10475.5833325,0.0002478,2]
[313022947,1706638243981,-500.0,0.00024838,2]
[313022948,1706638243991,-383.26,0.00024929,2]
[313022949,1706638244001,-500.0,0.00024994,2]
[313022950,1706638244012,-304.2742515,0.00025,2]
[313022951,1706638244023,-935.55189282,0.00025,2]
[313022952,1706638244033,-1251.73070518,0.00025,2]
[313022953,1706638244044,-1587.92031382,0.00025,2]
[313022954,1706638244054,-167.80869471,0.00025,2]
[313022955,1706638244065,-202.54115654,0.00025,2]
[313022956,1706638244076,-159.6400304,0.00025,2]
[313022957,1706638244087,-1904.53326151,0.00025,2]
[313022958,1706638244097,-208.07744816,0.00025,2]
[313022959,1706638244106,-550.0,0.00025,3]
[313022960,1706638244117,-210.0,0.00025002,2]
[313022961,1706638244128,-500.0,0.00025149,2]
[313022962,1706638244139,-867.32,0.00025203,2]
[313022963,1706638244149,-167.0,0.00025299,2]
[313022964,1706638244159,-500.0,0.00025305,2]
[313022965,1706638244168,-1018.93326493,0.00025329,2]
[313022966,1706638244177,-500.0,0.00025461,2]
[313022967,1706638244186,-500.0,0.00025616,2]
[313022968,1706638244196,-500.0,0.00025772,2]
[313022969,1706638244205,-383.26,0.0002578,2]
[313022970,1706638244215,-153.60379297,0.000258,2]
[313022971,1706638244224,-3155.98201451,0.00025991,2]
[313022972,1706638244234,-838.8656564,0.00026,2]
[313022973,1706638244257,-272.03534569,0.00026,2]
[313022974,1706638244271,-682.0887996,0.00026,2]
[313022975,1706638244285,-55.15186931,0.00026,2]
[313022976,1706638244295,-150.0,0.00026079,2]
[313022977,1706638244304,-1000.0,0.000261,2]
[313022978,1706638244314,-323.68150614,0.0002611,2]
[313022979,1706638244323,-206.0,0.00026276,6]
[313022980,1706638244333,-189.53,0.00026298,2]
[313022981,1706638244343,-167.0,0.00026302,2]
[313022982,1706638244353,-500.0,0.00026394,2]
[313022983,1706638244362,-2612.59881929,0.000264,2]
[313022984,1706638244376,-257.2765,0.000264,2]
[313022985,1706638244392,-6555.00335463,0.000264,2]
[313022986,1706638244402,-182.21,0.00026419,2]
[313022987,1706638244411,-383.26,0.00026632,2]
[313022988,1706638244421,-371.1,0.00026778,2]
[313022989,1706638244431,-867.32,0.00026847,2]
[313022990,1706638244440,-183.85298174,0.00026879,2]
[313022991,1706638244450,-417.82270644,0.00027,2]
[313022992,1706638244460,-600.0,0.00027,3]
[313022993,1706638244469,-500.0,0.00027016,2]
[313022994,1706638244478,-167.0,0.00027304,2]
[313022995,1706638244488,-200.0,0.00027389,2]
[313022996,1706638244498,-838.0,0.00027392,2]
[313022997,1706638244507,-1860.0,0.00027392,2]
[313022998,1706638244517,-677.66586024,0.00027392,2]
[313023003,1706638246156,-240.24729321,0.00022998,2]
[313023004,1706638246167,-13.86886837,0.00022999,2]
[313023005,1706638246180,-151.65035947,0.00022999,2]